bitfinex/quotes_ETHUSD_20250529
["timestamp","ask_amount","ask_price","bid_price","bid_amount"]
[1748507376736,3.884,2720.1,2719.6,8.0]
[1748507376940,3.884,2720.1,2719.5,0.4577]
[1748507376941,3.884,2720.1,2719.9,11.67653586]
[1748507377256,3.884,2720.1,2719.8,11.67673648]
[1748507377535,3.884,2720.1,2719.9,3.67648053]
[1748507377713,3.884,2720.1,2719.9,3.67659043]
[1748507378744,3.884,2720.1,2719.5,8.0]
[1748507378745,1.1295,2720.0,2719.5,8.0]
[1748507378918,1.1295,2720.0,2719.7,8.0]
[1748507379123,1.1295,2720.0,2719.7,3.67686259]
[1748507379834,1.1295,2720.0,2719.8,8.0]
[1748507380258,1.1295,2720.0,2719.8,3.67672245]
[1748507380407,3.883,2720.0,2719.9,3.67650861]
[1748507381630,1.1593,2720.3,2719.9,3.67650861]
[1748507381845,3.883,2720.2,2719.9,3.67650861]
[1748507382350,1.1593,2720.3,2719.9,3.67650861]
[1748507382666,3.883,2720.2,2720.0,11.67638]
[1748507383017,3.883,2720.2,2720.0,11.6764704]
[1748507384171,3.883,2720.2,2720.0,8.0]
[1748507385734,3.883,2720.2,2720.0,11.67645666]
[1748507385919,3.883,2720.2,2720.0,8.0]
[1748507388317,3.883,2720.2,2720.0,11.67641226]
[1748507388660,3.883,2720.2,2720.0,8.0]
[1748507389565,1.1593,2720.3,2720.0,8.0]
[1748507389749,3.881,2720.2,2719.7,0.4577]
[1748507390056,3.881,2720.2,2719.9,3.67654032]
[1748507390482,3.881,2720.2,2719.8,11.67667034]
[1748507390765,8.67915523,2720.2,2719.8,8.0]
[1748507390915,4.79825996,2720.1,2719.7,8.0]
[1748507391565,4.79825996,2720.1,2719.5,11.67710389]
[1748507391742,4.79825996,2720.1,2719.6,3.67700835]
[1748507391942,4.79825996,2720.1,2719.7,8.0]
[1748507392813,4.79832893,2720.1,2719.5,3.67707877]
[1748507393014,3.881,2720.0,2719.7,8.0]
[1748507393233,3.881,2720.0,2719.6,8.0]
[1748507393428,3.881,2719.9,2719.6,8.0]
[1748507393641,3.881,2719.9,2719.7,3.676814]
[1748507398776,3.881,2719.9,2719.6,8.0]
[1748507398777,3.881,2719.9,2719.6,11.67697678]
[1748507399428,3.881,2719.9,2719.7,3.67679588]
[1748507399926,3.881,2719.9,2719.6,11.67695602]
[1748507400485,3.881,2719.9,2719.7,3.67687307]
[1748507400657,3.881,2719.9,2719.6,0.42111408]
[1748507400966,3.881,2719.9,2719.6,3.67688347]
[1748507401203,3.881,2719.9,2719.7,3.67686718]
[1748507401356,3.881,2719.9,2719.6,3.67695516]
[1748507401765,1.1795,2719.8,2719.2,0.4575]
[1748507402084,3.67696737,2719.7,2719.2,3.67753243]
[1748507402244,3.879,2719.6,2719.2,3.67753243]
[1748507402446,3.879,2719.6,2719.1,0.05]
[1748507402646,3.879,2719.6,2719.1,3.7276701]
[1748507402846,3.879,2719.6,2719.3,3.67738619]
[1748507403441,3.879,2719.6,2719.2,3.6775207]
[1748507403784,3.879,2719.6,2719.3,3.677411]
[1748507403979,3.879,2719.6,2719.4,3.67724052]
[1748507404182,3.879,2719.5,2719.3,3.67733673]
[1748507404384,3.879,2719.5,2719.3,3.67732098]
[1748507404887,3.879,2719.5,2719.4,3.67728175]
[1748507405790,3.879,2719.5,2719.3,3.67736269]
[1748507406144,3.879,2719.5,2719.1,3.72766347]
[1748507406346,3.67608586,2720.3,2719.2,4.13495156]
[1748507406347,1.1183,2720.3,2719.2,4.13495156]
[1748507406687,7.55531286,2720.2,2719.6,3.67692175]
[1748507407248,3.67634065,2720.1,2719.6,3.67692175]
[1748507407460,1.0922,2720.0,2719.6,3.67692175]
[1748507409516,1.0922,2720.0,2719.7,8.0]
[1748507411207,3.878,2719.9,2719.7,8.0]
[1748507411403,3.878,2719.9,2719.5,8.0]
[1748507411578,3.878,2719.9,2719.6,3.67701055]
[1748507412009,3.878,2719.9,2719.5,11.67707558]
[1748507412217,7.55467581,2719.9,2719.4,3.67726269]
[1748507412426,1.1402,2719.8,2719.4,3.67726269]
[1748507415102,1.1402,2719.8,2719.3,3.67730456]
[1748507415309,1.1402,2719.8,2719.4,8.0]
[1748507415465,4.8169462,2719.8,2719.4,8.0]
[1748507415668,4.8169462,2719.8,2719.1,0.05]
[1748507415669,3.67693892,2719.7,2719.1,0.05]
[1748507415971,3.67693892,2719.7,2719.1,3.72761998]
[1748507416179,3.67701832,2719.6,2719.1,0.05]
[1748507416376,3.877,2719.5,2719.1,3.72765202]
[1748507416814,1.1174,2719.4,2719.1,0.05]
[1748507416990,1.1174,2719.4,2719.1,3.72760564]
[1748507417827,1.1174,2719.4,2719.1,8.05]
[1748507417977,1.1174,2719.4,2719.1,0.05]
[1748507418181,1.1174,2719.4,2719.1,3.72762358]
[1748507418618,1.1174,2719.4,2719.1,0.05]
[1748507418915,1.1174,2719.4,2719.1,8.05]
[1748507420110,4.79470211,2719.4,2719.1,0.05]
[1748507420294,1.1174,2719.4,2719.1,8.05]
[1748507420693,1.1174,2719.4,2719.1,0.05]
[1748507423783,1.1174,2719.4,2719.2,3.67753843]
[1748507424015,3.877,2719.5,2718.8,0.4575]
[1748507424016,3.877,2719.5,2718.8,0.07778912]
[1748507424183,3.877,2719.5,2719.1,3.67759802]
[1748507425249,4.78924307,2719.6,2719.0,8.0]
[1748507425522,3.876,2719.4,2719.0,8.0]
[1748507425693,3.876,2719.4,2719.1,3.67760838]
[1748507426110,3.876,2719.3,2719.1,3.67760838]
[1748507426283,3.876,2719.3,2719.0,11.67778513]
[1748507426482,1.1122,2719.6,2719.1,3.67760334]
[1748507426798,3.876,2719.5,2719.2,3.67752929]
[1748507427199,1.1122,2719.6,2719.2,3.67752929]
[1748507427395,4.78921198,2719.6,2719.1,3.67763295]
[1748507427714,3.876,2719.5,2719.1,3.67763295]
[1748507430798,3.876,2719.5,2719.0,11.67780151]
[1748507431203,7.55315875,2719.5,2719.0,11.67780151]
[1748507431524,3.876,2719.5,2719.1,3.67767627]
[1748507431932,3.875,2719.4,2719.0,11.67776369]
[1748507432434,7.55231524,2719.4,2719.0,8.0]
[1748507433236,3.875,2719.4,2719.1,8.0]
[1748507434610,7.5522843,2719.4,2719.0,8.0]
[1748507434808,3.875,2719.4,2719.0,11.6778173]
[1748507435631,3.875,2719.4,2718.3,5.47789966]
[1748507435632,1.1511,2719.2,2718.3,5.47789966]
[1748507435935,3.874,2719.1,2718.8,8.0]
[1748507436251,3.874,2719.1,2718.8,3.6780906]
[1748507436587,3.874,2719.1,2718.7,11.67817477]
[1748507436928,3.874,2719.1,2718.7,11.67822349]
[1748507438121,3.874,2719.1,2718.8,3.67807022]
[1748507438746,3.874,2719.1,2718.7,11.67811376]
[1748507438942,3.874,2719.1,2718.8,3.67800923]
[1748507439147,3.874,2719.1,2718.1,0.05]
[1748507439148,1.167,2719.0,2718.1,0.05]
[1748507439308,3.6782254,2718.8,2718.3,8.0]
[1748507439615,3.6782254,2718.8,2718.1,0.05]
[1748507439616,1.167,2718.6,2718.1,3.72903873]
[1748507439819,1.167,2718.6,2718.2,3.67889211]
[1748507440026,1.167,2718.6,2718.3,8.0]
[1748507440225,1.167,2718.6,2718.1,0.05]
[1748507440226,1.167,2718.6,2718.1,3.72900715]
[1748507440742,4.84538086,2718.6,2718.2,8.0]
[1748507440941,1.167,2718.6,2718.2,8.0]
[1748507441141,1.167,2718.6,2718.2,3.67888618]
[1748507441322,4.84541173,2718.6,2718.1,3.7289987]
[1748507441647,4.84541173,2718.6,2718.1,0.05]
[1748507441845,3.67851626,2718.5,2718.1,0.05]
[1748507442048,8.71666883,2718.4,2718.1,0.05]
[1748507442247,5.038,2718.4,2718.1,0.05]
[1748507443048,8.71664506,2718.4,2718.1,0.05]
[1748507443343,3.67885326,2718.3,2718.1,0.05]
[1748507443653,1.1694,2718.2,2718.1,0.05]
[1748507444925,4.84830515,2718.2,2718.1,0.05]
[1748507445249,1.1694,2718.2,2718.1,0.05]
[1748507445609,4.84830515,2718.2,2718.1,0.05]
[1748507445805,1.1694,2718.2,2718.1,0.05]
[1748507448472,4.84830515,2718.2,2718.1,0.05]
[1748507450257,1.1694,2718.2,2718.1,0.05]
[1748507451282,4.84830515,2718.2,2718.1,0.05]
[1748507451441,1.1694,2718.2,2718.1,0.05]
[1748507451627,1.0792,2718.5,2718.1,0.05]
[1748507451826,3.872,2718.4,2718.2,3.67889349]
[1748507452147,3.872,2718.5,2718.2,3.67885589]
[1748507452390,1.0792,2718.8,2718.2,3.67890515]
[1748507452680,3.872,2718.7,2718.3,3.67870056]
[1748507452826,1.0792,2718.8,2718.2,3.67888709]
[1748507453026,1.0792,2718.8,2718.3,3.67869932]
[1748507453266,3.872,2718.7,2718.4,3.67860726]
[1748507453566,1.0792,2718.8,2718.2,3.67889725]
[1748507453567,3.872,2718.6,2718.2,3.67889725]
[1748507453763,3.872,2718.6,2718.3,3.67876981]
[1748507453962,1.0792,2718.8,2718.3,3.67863522]
[1748507454168,3.872,2718.7,2718.2,3.67887053]
[1748507454468,3.872,2718.7,2718.3,3.67867344]
[1748507454674,1.1785,2719.0,2718.5,3.67840896]
[1748507454843,3.872,2718.9,2718.5,3.67840896]
[1748507455038,3.872,2718.8,2718.6,3.67834523]
[1748507455238,3.872,2718.8,2718.5,3.67849802]
[1748507455239,3.872,2718.8,2718.7,3.67814488]
[1748507455446,3.872,2718.8,2718.6,3.67830213]
[1748507455764,3.872,2718.8,2718.6,3.67829541]
[1748507455959,4.85617635,2719.2,2718.6,3.67829541]
[1748507456168,3.67768843,2719.1,2718.6,3.67829541]
[1748507456465,4.85607824,2719.2,2718.7,3.67822324]
[1748507456636,3.871,2719.1,2718.7,3.67822324]
[1748507457324,3.871,2719.1,2718.5,0.0576]
[1748507457325,3.871,2719.1,2718.6,3.67829866]
[1748507457525,3.871,2719.1,2718.6,3.67827175]
[1748507457728,3.871,2719.1,2718.7,3.67819468]
[1748507457927,4.85607824,2719.2,2718.7,3.67819468]
[1748507458158,1.1785,2719.2,2718.8,3.67805556]
[1748507458374,1.1223,2719.6,2719.0,3.73538771]
[1748507458668,3.67723649,2719.5,2719.0,0.0576]
[1748507459741,3.67728791,2719.4,2719.0,0.0576]
[1748507459942,3.67750595,2719.3,2718.9,0.6]
[1748507460269,3.67742844,2719.3,2718.9,0.6]
[1748507460469,3.67750005,2719.3,2718.9,0.6]
[1748507460771,3.67750005,2719.3,2718.3,1.044]
[1748507460772,5.35260515,2718.2,2717.6,0.514]
[1748507460974,9.22260515,2718.2,2717.1,0.05]
[1748507461527,9.22260515,2718.2,2717.2,3.68016539]
[1748507461836,5.5437,2718.2,2717.2,3.68016539]
[1748507462034,4.80260515,2718.2,2717.4,0.6576]
[1748507462270,8.67260515,2718.2,2717.5,3.67981361]
[1748507462590,8.67260515,2718.2,2717.6,3.67970859]
[1748507462933,8.67260515,2718.2,2717.7,3.67954388]
[1748507463172,4.9937,2718.2,2717.6,8.0]
[1748507463475,1.1547,2718.5,2717.6,8.0]
[1748507463696,7.54890515,2718.2,2717.5,11.67980675]
[1748507463835,7.54890515,2718.2,2717.5,3.67983459]
[1748507464236,7.54890515,2718.2,2717.4,12.33752892]
[1748507464569,7.54890515,2718.2,2717.4,8.6576]
[1748507465287,7.54890515,2718.2,2717.4,4.33757845]
[1748507465834,4.83323295,2718.5,2717.4,4.33757845]
[1748507465835,3.67872854,2718.4,2717.5,1.83603223]
[1748507466064,4.83327757,2718.5,2718.0,0.6576]
[1748507466253,3.67864588,2718.4,2718.0,0.6576]
[1748507466651,4.83325149,2718.5,2718.0,0.6576]
[1748507466849,3.87,2718.4,2718.0,0.6576]
[1748507467077,4.82148143,2718.6,2718.0,4.3367386]
[1748507467274,4.82148143,2718.6,2718.0,0.6576]
[1748507467275,3.87,2718.4,2718.0,0.6576]
[1748507467445,3.87,2718.4,2718.0,4.33677109]
[1748507467778,7.54864399,2718.4,2718.0,0.6576]
[1748507468881,3.67877394,2718.3,2717.7,4.33709654]
[1748507469055,3.67877394,2718.3,2717.7,12.33709654]
[1748507469562,3.67890515,2718.2,2717.8,8.0]
[1748507470474,3.67883707,2718.3,2717.8,8.0]
[1748507471745,7.54870202,2718.4,2717.8,3.67940825]
[1748507471939,7.54870202,2718.4,2717.7,0.6576]
[1748507471940,3.67890108,2718.3,2717.7,0.6576]
[1748507472347,3.87,2718.4,2717.9,3.67930084]
[1748507472559,7.54870138,2718.4,2717.9,3.67930084]
[1748507472753,7.54870138,2718.4,2717.8,3.67938404]
[1748507472955,1.0738,2718.9,2718.2,0.6576]
[1748507473155,1.0738,2718.9,2718.2,4.33642285]
[1748507473156,3.67830728,2718.7,2718.2,4.33642285]
[1748507473388,3.67830728,2718.7,2718.2,0.6576]
[1748507473558,3.869,2718.6,2718.2,0.6576]
[1748507473757,7.54737839,2718.6,2718.2,0.6576]
[1748507474072,3.869,2718.6,2718.2,0.6576]
[1748507474256,3.67856683,2718.5,2718.1,0.05]
[1748507474669,3.869,2718.6,2718.1,0.05]
[1748507474882,3.67850806,2718.5,2718.1,0.05]
[1748507475057,7.54743318,2718.6,2718.1,0.05]
[1748507475385,1.0738,2718.9,2718.4,3.67856258]
[1748507476059,3.869,2718.8,2718.4,3.67856258]
[1748507476289,3.869,2718.8,2718.2,12.11752054]
[1748507476290,7.54710033,2718.8,2718.2,12.11752054]
[1748507476945,3.869,2718.7,2718.2,12.11752054]
[1748507477420,3.869,2718.7,2718.1,8.05]
[1748507477694,3.67845872,2718.6,2718.1,8.05]
[1748507478289,3.67847099,2718.6,2718.1,8.05]
[1748507478458,3.7152568,2718.5,2718.1,0.05]
[1748507478664,3.67838009,2718.6,2718.1,0.05]
[1748507478968,4.78498166,2718.4,2718.1,0.05]
[1748507479173,3.868,2718.3,2718.1,0.05]
[1748507481667,7.54679052,2718.3,2718.1,0.05]
[1748507481890,3.868,2718.3,2718.1,0.05]
[1748507482193,3.67890515,2718.2,2718.1,0.05]
[1748507483289,3.67890515,2718.2,2717.7,3.67957523]
[1748507483745,3.67890515,2718.2,2717.8,8.0]
[1748507485007,3.67904666,2718.1,2717.6,3.67960734]
[1748507485162,0.98433233,2718.1,2717.6,3.67960734]
[1748507485358,4.66338145,2718.1,2717.6,3.67960734]
[1748507486275,3.67904912,2718.1,2717.6,3.67960734]
[1748507486596,3.67895152,2718.2,2717.5,3.67982268]
[1748507486801,3.868,2718.3,2717.7,8.0]
[1748507486802,3.67906009,2718.1,2717.7,8.0]
[1748507487160,3.67896677,2718.2,2717.7,8.0]
[1748507487364,3.6790595,2718.1,2717.5,11.67978867]
[1748507487565,3.6790595,2718.1,2717.6,3.67969367]
[1748507487968,7.54681684,2718.3,2717.9,8.0]
[1748507488164,3.67881684,2718.3,2717.9,8.0]
[1748507488369,4.91198737,2718.3,2717.9,8.0]
[1748507488565,3.867,2718.2,2717.9,8.0]
[1748507489628,7.54590652,2718.2,2717.9,8.0]
[1748507489924,3.867,2718.2,2717.7,3.67948169]
[1748507491804,3.867,2718.2,2717.8,8.0]
[1748507492413,7.54592239,2718.2,2717.8,8.0]
[1748507493033,8.16238204,2718.2,2717.6,11.67964713]
[1748507493328,8.16247208,2718.2,2717.8,8.0]
[1748507493534,7.54601243,2718.2,2717.8,8.0]
[1748507493940,3.67905975,2718.1,2717.6,11.67966924]
[1748507494094,7.54596902,2718.2,2717.6,8.0]
[1748507494293,7.54596902,2718.2,2717.8,8.0]
[1748507494499,8.77906304,2718.2,2717.8,8.0]
[1748507494926,7.54596902,2718.2,2717.8,8.0]
[1748507495551,3.867,2718.2,2717.8,8.0]
[1748507496266,3.67704371,2719.6,2718.0,5.47838936]
[1748507496423,7.85,2719.8,2718.8,8.0]
[1748507496424,1.068,2719.1,2718.8,8.0]
[1748507496750,1.068,2719.1,2718.6,11.6782374]
[1748507497056,3.866,2719.1,2718.8,8.0]
[1748507497203,3.866,2719.1,2718.8,11.67804036]
[1748507498304,3.866,2719.1,2718.1,5.70464716]
[1748507498628,3.866,2719.1,2718.7,8.0]
[1748507499025,3.866,2719.1,2718.7,3.67822112]
[1748507500061,1.1,2719.3,2718.6,3.67832545]
[1748507500262,3.865,2719.2,2718.9,8.0]
[1748507500406,3.865,2719.2,2718.8,3.67803558]
[1748507500610,3.865,2719.2,2718.9,8.0]
[1748507500938,3.865,2719.2,2718.8,3.67803558]
[1748507501123,3.865,2719.2,2718.4,3.67863449]
[1748507501310,3.865,2719.2,2718.8,3.67802495]
[1748507501537,3.865,2719.1,2718.8,3.67802495]
[1748507501744,3.865,2719.0,2718.8,3.67802495]
[1748507502846,1.1,2719.3,2718.9,3.67791787]
[1748507503064,3.865,2719.2,2718.8,3.67802923]
[1748507504069,3.865,2719.2,2718.7,3.67819821]
[1748507504772,3.865,2719.2,2718.8,3.67807093]
[1748507505756,4.77742135,2719.3,2718.8,3.67807093]
[1748507505757,1.1,2719.3,2718.8,3.67807093]
[1748507505920,3.864,2719.1,2718.8,3.67807093]
[1748507508781,1.1,2719.3,2718.9,3.67795488]
[1748507508976,1.1,2719.3,2718.7,8.0]
[1748507508977,3.864,2719.1,2718.8,3.67799273]
[1748507511190,3.864,2719.1,2718.7,8.0578]
[1748507511495,3.864,2719.1,2718.7,8.0]
[1748507511692,8.40591663,2719.1,2718.6,8.0]
[1748507511993,8.40591663,2719.1,2718.6,11.67834115]
[1748507512385,4.72816342,2719.1,2718.7,3.678199]
[1748507512907,8.40586845,2719.1,2718.6,3.67830544]
[1748507513804,8.40586845,2719.1,2718.4,3.67852531]
[1748507513805,3.67789427,2719.0,2718.4,3.67852531]
[1748507514018,4.72816342,2719.1,2718.3,0.0578]
[1748507514155,4.72816342,2719.1,2718.3,1.14740374]
[1748507514350,4.72816342,2719.1,2718.7,8.0]
[1748507514553,4.72816342,2719.1,2718.7,11.67816051]
[1748507514803,4.77744213,2719.3,2718.8,3.67807311]
[1748507515011,3.862,2719.2,2718.8,3.67807311]
[1748507515168,3.862,2719.1,2718.9,3.67789992]
[1748507516707,1.1,2719.3,2718.8,0.0578]
[1748507516859,1.1,2719.3,2719.0,3.67769643]
[1748507516860,3.862,2719.3,2719.0,3.67769643]
[1748507517272,3.862,2719.3,2719.1,3.67766551]
[1748507517466,3.862,2719.3,2719.0,3.6777587]
[1748507517687,3.862,2719.3,2719.1,3.67768612]
[1748507517893,1.1489,2719.6,2719.2,3.67752243]
[1748507518095,1.631478,2719.6,2718.8,0.0578]
[1748507518254,1.631478,2719.6,2719.1,3.67760114]
[1748507518255,3.862,2719.5,2719.1,3.67760114]
[1748507518461,1.1489,2719.6,2719.1,3.67760114]
[1748507518664,1.1489,2719.6,2719.0,3.67781769]
[1748507518665,3.862,2719.5,2719.2,3.67747696]
[1748507518874,3.862,2719.5,2719.1,3.67766699]
[1748507520008,3.862,2719.5,2718.8,0.0578]
[1748507520009,3.862,2719.5,2719.2,3.67753668]
[1748507521408,3.862,2719.5,2719.2,3.67749306]
[1748507521595,3.861,2719.5,2719.2,3.67749306]
[1748507522213,3.861,2719.5,2719.3,3.6773951]
[1748507522407,3.861,2719.5,2719.2,3.73528742]
[1748507524107,3.861,2719.6,2719.3,8.0]
[1748507524290,3.861,2719.6,2719.2,8.0578]
[1748507524461,1.0558,2719.8,2719.4,3.67727206]
[1748507524660,3.861,2719.7,2719.4,3.67727206]
[1748507525301,3.861,2719.7,2719.2,3.73530994]
[1748507525302,3.86,2719.7,2719.3,3.67741126]
[1748507525491,3.86,2719.7,2719.4,3.67720996]
[1748507525703,1.53404626,2719.8,2719.3,3.67741389]
[1748507525931,3.86,2719.7,2719.3,3.67741389]
[1748507526140,1.0558,2719.8,2719.4,3.67726669]
[1748507526303,3.86,2719.7,2719.5,3.67705944]
[1748507527094,4.9158,2719.8,2719.5,3.67701986]
[1748507527826,3.86,2719.8,2719.5,3.67701986]
[1748507528209,0.05,2719.9,2719.5,3.67701986]
[1748507528409,3.91,2719.9,2719.5,3.67701986]
[1748507528961,0.05,2719.9,2719.3,3.67738433]
[1748507529253,0.05,2719.9,2719.8,3.67674093]
[1748507529411,0.05,2719.9,2719.8,8.0]
[1748507529952,0.05,2719.9,2719.8,11.67674093]
[1748507530149,0.05,2719.9,2719.8,8.0]
[1748507530363,0.05,2719.9,2719.8,11.67674093]
[1748507530716,0.05,2719.9,2719.8,8.0]
[1748507531315,0.05,2719.9,2719.8,11.67674093]
[1748507532231,0.05,2719.9,2719.8,13.21788133]
[1748507535081,0.05,2719.9,2719.8,13.27568133]
[1748507542111,0.05,2719.9,2719.8,13.21788133]
[1748507542285,0.05,2719.9,2719.8,11.67674093]
[1748507550885,0.05,2719.9,2719.8,8.0]
[1748507551088,1.1591,2719.9,2719.5,3.67706356]
[1748507551405,1.1591,2719.9,2719.6,3.6769847]
[1748507551605,1.1591,2719.9,2719.7,8.0]
[1748507551998,1.1591,2719.9,2719.6,8.0]
[1748507552195,1.1591,2719.9,2719.5,3.67709876]
[1748507552824,1.1591,2719.9,2719.6,3.67695713]
[1748507553386,3.855,2719.8,2719.6,3.67695713]
[1748507554280,3.855,2719.8,2719.6,3.67693911]
[1748507554486,1.1591,2719.9,2719.8,3.67674093]
[1748507554487,0.05,2719.9,2719.8,3.67674093]
[1748507554687,0.05,2719.9,2719.7,3.67685177]
[1748507555090,0.03675,2719.9,2719.7,3.67685177]
[1748507555285,0.03675,2719.9,2719.5,3.67704466]
[1748507555491,0.03675,2719.9,2719.8,3.67674093]
[1748507555702,0.03675,2719.9,2719.8,11.67674093]
[1748507559189,0.03675,2719.9,2719.7,3.67686728]
[1748507559591,0.03675,2719.9,2719.8,3.67674093]
[1748507569191,1.0971,2720.5,2720.4,3.67593001]
[1748507569330,1.67790161,2720.9,2720.2,0.0578]
[1748507569529,1.1471,2720.9,2720.2,3.73397827]
[1748507569772,1.1471,2720.9,2720.6,3.67560088]
[1748507570158,1.1471,2720.9,2720.6,3.67564683]
[1748507570470,1.1471,2720.9,2720.5,3.67572918]
[1748507571035,1.1471,2720.9,2720.6,3.67558757]
[1748507573183,4.9981,2720.9,2720.6,3.67558757]
[1748507574786,1.1471,2720.9,2720.8,3.67538959]
[1748507574986,1.1471,2720.9,2720.6,3.67556586]
[1748507574987,0.05,2720.9,2720.6,3.67556586]
[1748507575154,0.05,2720.9,2720.7,3.67552468]
[1748507575556,0.05,2720.9,2720.8,3.67538959]
[1748507576247,0.05,2720.9,2720.7,3.67549008]
[1748507576848,0.05,2720.9,2720.8,3.67538959]
[1748507577974,0.05,2720.9,2720.8,12.5615104]
[1748507579336,0.05,2720.9,2720.8,13.5935104]
[1748507580415,0.05,2720.9,2720.8,12.4242104]
[1748507582994,0.05,2720.9,2720.8,12.5615104]
[1748507584524,0.05,2721.9,2721.3,8.0]
[1748507584677,0.05,2721.9,2721.7,3.67409099]
[1748507585027,0.05,2721.9,2721.8,3.67403923]
[1748507586623,0.05,2721.9,2721.4,3.67450118]
[1748507586624,1.2425,2721.9,2721.4,3.67450118]
[1748507586784,1.2425,2721.9,2721.0,1.63653988]
[1748507586785,1.2425,2721.9,2721.5,3.67442957]
[1748507587931,4.9164712,2721.9,2721.3,3.67467749]
[1748507588124,4.91644838,2721.9,2721.3,3.67467749]
[1748507588444,4.91644838,2721.9,2721.2,1.79923735]
[1748507588445,0.05,2721.9,2721.2,1.79923735]
[1748507588579,0.05,2721.9,2721.5,3.67435354]
[1748507588914,1.1737,2721.9,2721.7,3.67413974]
[1748507589095,1.1737,2721.9,2721.8,3.67403923]
[1748507589319,0.05,2721.9,2721.8,3.67403923]
[1748507590157,0.05,2721.9,2721.8,4.40885947]
[1748507590455,0.05,2721.9,2721.8,3.67403923]
[1748507590897,0.05,2721.9,2721.7,3.67416318]
[1748507590898,0.05,2721.9,2721.7,3.67411484]
[1748507591295,0.05,2721.9,2721.1,1.79923735]
[1748507591500,0.05,2721.9,2721.6,3.67424601]
[1748507591742,0.05,2721.9,2721.8,3.67403923]
[1748507591941,0.05,2721.9,2721.7,3.67410987]
[1748507592915,0.05,2721.9,2721.5,3.67439832]
[1748507592916,0.05,2721.9,2721.5,8.0]
[1748507593117,0.05,2721.9,2721.6,3.67419047]
[1748507593332,0.05,2721.9,2721.5,11.67443763]
[1748507593638,0.05,2721.9,2721.7,3.67414682]
[1748507594303,0.05,2721.9,2721.6,3.67424233]
[1748507594737,1.1169,2721.8,2721.5,8.0]
[1748507594906,1.1169,2721.8,2721.5,3.67444349]
[1748507595605,1.1169,2721.8,2721.5,3.67440895]
[1748507596005,1.1169,2721.8,2721.1,1.79923735]
[1748507596006,3.67424667,2721.7,2721.1,1.032]
[1748507596203,1.6009795,2721.8,2721.2,8.0]
[1748507596405,1.6009795,2721.8,2721.3,3.67464064]
[1748507597380,1.6009795,2721.8,2721.3,3.67459197]
[1748507597673,1.6009795,2721.8,2721.4,3.67456527]
[1748507597826,1.6009795,2721.8,2721.4,3.67457775]
[1748507598026,1.1169,2721.8,2721.5,3.67433534]
[1748507598327,1.1169,2721.8,2721.6,3.67429948]
[1748507599660,1.1169,2721.8,2721.5,3.67440005]
[1748507600036,1.1169,2721.8,2721.5,3.67442975]
[1748507600669,1.1169,2721.8,2721.6,3.6742996]
[1748507601224,1.1169,2721.8,2721.5,3.67442302]
[1748507601437,1.1169,2721.8,2721.6,3.67430559]
[1748507601869,1.1169,2721.8,2721.5,3.67438103]
[1748507602236,1.1169,2721.8,2721.6,3.67421235]
[1748507602442,1.1169,2721.8,2721.4,8.0]
[1748507602673,1.1169,2721.8,2721.7,3.67417422]
[1748507603053,0.05,2721.9,2721.4,8.0]
[1748507603054,0.05,2721.9,2721.8,3.67403923]
[1748507603252,0.05,2721.9,2721.8,11.67403923]
[1748507605442,0.05,2721.9,2721.8,3.67403923]
[1748507610173,0.05,2721.9,2721.8,11.67403923]
[1748507617670,0.05,2721.9,2721.6,3.67421674]
[1748507617992,1.0527,2721.8,2720.9,1.029]
[1748507618194,1.0527,2721.8,2721.5,8.0]
[1748507618757,1.0527,2721.8,2721.5,3.67442969]
[1748507619150,1.0527,2721.8,2721.4,3.67453283]
[1748507619368,1.0527,2721.8,2721.3,3.6746413]
[1748507619575,0.47766095,2721.7,2721.4,3.6745516]
[1748507619972,0.47766095,2721.7,2721.3,8.0]
[1748507620220,0.47766095,2721.7,2721.4,3.67454875]
[1748507620384,0.47766095,2721.7,2721.3,3.67468372]
[1748507620580,1.0527,2721.8,2721.4,3.67457098]
[1748507621421,4.8947,2721.8,2721.4,3.67457098]
[1748507622331,4.8947,2721.8,2720.9,4.70423503]
[1748507622332,4.8947,2721.8,2721.3,11.67467106]
[1748507622528,6.12394814,2721.8,2721.4,3.67454048]
[1748507623273,1.0823,2721.7,2721.3,8.0]
[1748507623479,1.0823,2721.7,2720.8,1.029]
[1748507623480,1.0823,2721.5,2721.0,3.67508049]
[1748507623989,1.0823,2721.5,2721.2,8.0]
[1748507625083,7.31661535,2721.4,2720.5,0.61594775]
[1748507625416,1.0823,2721.3,2720.5,8.61594775]
[1748507625636,1.0823,2721.3,2720.5,10.92094879]
[1748507625789,1.0823,2721.3,2721.0,3.6750521]
[1748507626303,1.0823,2721.3,2721.1,3.67497998]
[1748507626483,1.0823,2721.3,2721.0,8.0]
[1748507626682,1.0823,2721.3,2721.1,3.67497998]
[1748507626927,4.9243,2721.3,2721.0,11.67506267]
[1748507628437,1.1396,2721.6,2721.0,11.67506267]
[1748507628602,5.46298085,2721.6,2721.1,3.67490898]
[1748507628935,5.46298085,2721.6,2721.0,8.0]
[1748507628936,3.67446157,2721.5,2721.0,3.67507466]
[1748507629119,8.65597501,2721.6,2721.1,3.67491512]
[1748507629290,9.88898135,2721.6,2721.1,3.67491512]
[1748507629491,6.21460634,2721.6,2721.1,3.67491512]
[1748507631307,2.37260634,2721.6,2720.8,1.79923735]
[1748507631508,4.9816,2721.6,2721.4,3.67447584]
[1748507632299,3.842,2721.8,2721.5,3.67436541]
[1748507632499,4.34112,2721.8,2721.5,3.67436541]
[1748507633406,4.34112,2721.8,2721.4,3.67450262]
[1748507634036,0.49912,2721.8,2721.3,3.67462831]